Cogmind - Beta 16 @@@ ROGUE MODE // 2025.12.01 @ 22:11:02 Player: The Gourd Result: Destroyed self with Heavy Rocket Launcher Performance ------------- Evolutions (2) 1000 Regions Visited (8) 1600 Robots Destroyed (131) 655 Value Destroyed (4618) 4618 Prototype IDs (4) 80 Alien Tech Used (0) 0 Bonus (2327) 2327 TOTAL SCORE: 10280 Bonus ------- Triggered High Security 500 High Alert Combat Kills 1018 Follower Combat Kills 409 Entered Garrisons 400 Cogmind --------- Core Integrity 0/550 Matter 225/300 Energy 100/100 System Corruption 2% Temperature Cool (0) Movement Treading (240) Ox1 Location -8/Garrison Parts ------- > --- POWER (1) -------- (None) > --- PROPULSION (3) --- Light Treads Light Treads Light Treads > --- UTILITY (4) ------ Huge Storage Unit Enhanced Optical Array > --- WEAPON (3) ------- Heavy Assault Rifle Heavy Rocket Launcher Ripper > --- INVENTORY (25) --- Ion Engine Micro Nuclear Core Light Treads Light Treads Improved Heat Sink High-capacity Storage Unit Large Matter Pod (150) Experimental Sensor Array Seismic Detector Core Analyzer Armor Integrity Analyzer Light Armor Plating Trap Extractor (4/4 Fusion Bomb) Trap Extractor (4/4 Gamma Bomb) Improved Trap Extractor (6/6 Fusion Bomb) Heavy Assault Rifle Gauss Rifle Gauss Rifle Gauss Rifle Heavy Flak Cannon Heavy Rocket Launcher Improved Datajack Remote Datajack Heavy Flail Peak State ------------ > --- POWER ------------ Ion Engine > --- PROPULSION ------- Light Treads Light Treads Light Treads > --- UTILITY ---------- Huge Storage Unit Enhanced Optical Array Medium Armor Plating Insulated Plating > --- WEAPON ----------- Heavy Assault Rifle Heavy Rocket Launcher Ripper > --- INVENTORY -------- Ion Engine Micro Nuclear Core Light Treads Light Treads Improved Heat Sink High-capacity Storage Unit Large Matter Pod Experimental Sensor Array Seismic Detector Core Analyzer Armor Integrity Analyzer Light Armor Plating Trap Extractor Trap Extractor Improved Trap Extractor Heavy Assault Rifle Gauss Rifle Gauss Rifle Gauss Rifle Heavy Flak Cannon Heavy Rocket Launcher Improved Datajack Remote Datajack Heavy Flail [Rating: 32] Favorites ----------- Power Light Nuclear Core Engine Ion Engine Power Core Light Nuclear Core Propulsion Light Treads Treads Light Treads Leg Aluminum Leg Wheel Compact Wheel Utility Huge Storage Unit Device Seismic Detector Storage Huge Storage Unit Processor Makeshift Salvage Targeting Computer Hackware Hacking Suite Protection Hardened Medium Armor Plating Weapon Assault Rifle Energy Gun Medium Laser Ballistic Gun Assault Rifle Ballistic Cannon Assault Cannon Launcher Rocket Launcher Impact Weapon Heavy Flail Slashing Weapon Ripper Special Melee Weapon Improved Datajack Build | -11 -10 -10 -10 -9 -8 -8 -8 -8 ------- Run | Yrd Mat Min Exi Min Mat Gar Mat Gar Slots Evolved 4 | . . . . . 4 . . . Power . | . . . . . . . . . Propulsion 1 | . . . . . 1 . . . Utility 2 | . . . . . 2 . . . Weapon 1 | . . . . . 1 . . . Parts Attached 75 | 8 8 5 9 . 19 21 4 1 Power 9 | 2 1 . 2 . 1 3 . . Engine 5 | 2 . . . . 1 2 . . Core 4 | . 1 . 2 . . 1 . . Reactor . | . . . . . . . . . Propulsion 23 | 2 2 1 1 . 8 8 1 . Treads 15 | 1 1 . 1 . 6 5 1 . Leg 3 | . . . . . . 3 . . Wheel 5 | 1 1 1 . . 2 . . . Hover . | . . . . . . . . . Flight . | . . . . . . . . . Utility 22 | 2 2 2 4 . 5 6 . 1 Device 7 | 1 1 2 1 . . 2 . . Storage 4 | 1 1 . 2 . . . . . Processor 3 | . . . 1 . . 1 . 1 Hackware 2 | . . . . . 2 . . . Protection 6 | . . . . . 3 3 . . Artifact . | . . . . . . . . . Weapon 21 | 2 3 2 2 . 5 4 3 . Energy Gun 2 | 2 . . . . . . . . Energy Cannon . | . . . . . . . . . Ballistic Gun 11 | . 3 . . . 3 3 2 . Ballistic Cannon 1 | . . 1 . . . . . . Launcher 4 | . . . 1 . 1 1 1 . Special Weapon . | . . . . . . . . . Impact Weapon 1 | . . . . . 1 . . . Slashing Weapon 1 | . . . 1 . . . . . Piercing Weapon . | . . . . . . . . . Special Melee Weapon 1 | . . 1 . . . . . . Unidentified Prototypes 2 | . . . . . 2 . . . Parts Lost 26 | . . 1 . . 7 13 2 3 Power 3 | . . . . . . 2 . 1 Propulsion 10 | . . 1 . . 4 4 1 . Utility 8 | . . . . . 2 3 1 2 Weapon 5 | . . . . . 1 4 . . Highest Loss Streak 10 | . . 1 . . 6 10 2 3 To Critical Strikes 1 | . . . . . . 1 . . Average Backups 20 | 3 11 21 20 25 24 21 24 24 Power 2 | . 2 3 1 2 2 2 2 2 Propulsion 2 | 1 1 1 3 4 4 1 1 2 Utility 9 | . 2 7 9 12 11 11 12 11 Weapon 5 | 1 4 8 6 5 5 5 7 7 Tool/Special . | . . . . . . . . . Unused Backups 29 | . 4 3 2 3 1 5 . 11 Power 5 | . . 1 . 1 . 2 . 1 Propulsion . | . . . . . . . . . Utility 13 | . 4 . . 2 . 2 . 5 Weapon 9 | . . 2 1 . 1 1 . 4 Tool/Special 2 | . . . 1 . . . . 1 Average Slot Usage (%) 97 | . 99 100 97 100 98 95 94 99 Engine 2 | . 1 . . . 6 5 9 8 Core 8 | . 11 14 14 14 2 . . . Treads 16 | . 18 14 14 14 18 16 26 27 Leg 3 | . . . . . . 9 . . Wheel 8 | . 9 14 14 14 8 . . . Device 6 | . 14 14 7 14 . . . . Storage 11 | . 14 14 12 14 9 9 9 9 Processor 1 | . . . 6 . . . 4 9 Hackware 2 | . . . . . 15 3 . . Protection 8 | . . . . . 9 21 18 18 Energy Gun 1 | . 11 . . . . . . . Ballistic Gun 10 | . 16 19 3 14 12 8 12 17 Ballistic Cannon 3 | . . 3 1 14 8 . . . Launcher 2 | . . . 3 . 1 5 . . Impact Weapon 1 | . . . . . 5 3 . . Slashing Weapon 4 | . . . 12 . . 4 9 9 Special Melee Weapon 3 | . . 4 6 . . 4 4 . Peak Build Rating 32 | 7 11 21 22 18 31 31 29 32 Average Rating 20 | 5 9 14 20 17 29 26 27 29 On Entrance 16 | . 7 10 21 17 17 25 29 25 Avg Prop Armor Cover (%) 12 | 13 11 11 13 11 12 10 . . Naked Turns . | . . . . . . . . . Heaviest Build 113 | 15 90 94 94 93 113 109 104 104 Greatest Support 60 | 20 40 16 20 16 60 60 60 60 Greatest Overweight (x) 10 | 1 8 9 5 5 10 8 2 1 Average Overweight (x) 4 | . 5 6 4 5 8 1 1 1 Largest Inventory Capacity 25 | 8 25 25 25 25 25 25 25 25 Average Capacity 24 | 7 24 25 22 25 25 25 25 25 Most Carried 25 | 6 20 25 25 25 25 25 25 24 Average Carried 20 | 3 11 22 21 24 24 21 24 24 Final Capacity 25 | 8 25 25 25 25 25 25 25 25 Final Carried 25 | 6 16 23 25 25 20 25 25 24 Scrap Suit Usage (%) 2 | . . . 11 . . . . . Parts Cannibalized 2 | . . . 2 . . . . . Class Distribution -------------------- 30% | Mutant 27% | Commander-Mutant 18% | Scavenger-Mutant 13% | Trapper-Mutant 3% | Scavenger-Tank Dominant Class ---------------- Mutant | -10/Materials Mutant | -10/Mines Commander-Mutant | -10/Exiles Mutant | -9/Mines Scavenger-Mutant | -8/Materials Scavenger-Mutant | -8/Garrison Trapper-Mutant | -8/Materials Trapper-Mutant | -8/Garrison Resources | -11 -10 -10 -10 -9 -8 -8 -8 -8 ----------- Run | Yrd Mat Min Exi Min Mat Gar Mat Gar Matter Collected 3458 | 280 329 294 387 176 645 1177 170 . Remotely . | . . . . . . . . . Salvage Created 4301 | 250 481 129 443 189 1042 1373 330 64 Parts 265 | 21 26 9 12 10 70 92 16 9 Haulers Intercepted 3 | . . . . . 3 . . . Recyclers Shooed 1 | . . . . . 1 . . . Parts Field Recycled . | . . . . . . . . . Retrieved Matter . | . . . . . . . . . Parts Self-Destructed . | . . . . . . . . . Prevented . | . . . . . . . . . Parts Restored . | . . . . . . . . . Kills | -11 -10 -10 -10 -9 -8 -8 -8 -8 ------- Run | Yrd Mat Min Exi Min Mat Gar Mat Gar Combat Hostiles Destroyed 97 | . 14 6 . 5 26 35 6 5 Guns 49 | . 14 6 . 2 5 18 4 . Cannons 7 | . . . . 3 4 . . . AOE 41 | . . . . . 17 17 2 5 Classes Destroyed 15 | 3 2 . . 2 6 1 . 1 Worker 7 | 2 . . . 1 3 . 1 . Builder 5 | . . . . . 5 . . . Tunneler 8 | 8 . . . . . . . . Hauler 3 | . . . . . 3 . . . Recycler 5 | 1 1 . . . 1 . 2 . Mechanic 1 | . . . . . 1 . . . Watcher 2 | . . . . . 1 . 1 . Swarmer 37 | . 8 4 . 1 6 16 . 2 Grunt 35 | . 6 2 . 1 13 10 3 . Brawler 1 | . . . . . 1 . . . Duelist 2 | . . . . 1 . 1 . . Sentry 15 | . . . . 2 5 5 3 . Specialist 2 | . . . . . . 2 . . Hunter 3 | . . . . . 1 2 . . Programmer 3 | . . . . . . . . 3 Thug 2 | . . . . . . 2 . . Best Kill Streak 20 | 4 4 2 . 3 20 4 9 5 Combat Bots Only 14 | . 4 2 . 2 14 4 5 5 Max Kills in Single Turn 6 | 1 1 2 . 1 6 4 2 2 Gunslinging 1 | . . . . . . 1 . . Exploded 3 | . . . . . 3 3 1 2 Melee . | . . . . . . . . . Uniques/NPCs Destroyed . | . . . . . . . . . Combat | -11 -10 -10 -10 -9 -8 -8 -8 -8 -------- Run | Yrd Mat Min Exi Min Mat Gar Mat Gar Hostile Shots Fired 494 | . 87 24 . 16 159 163 26 19 Missed 142 | . 22 6 . 7 51 43 6 7 Hits 352 | . 65 18 . 9 108 120 20 12 Projectile 352 | . 65 18 . 9 108 120 20 12 AOE 1 | . . . . . . 1 . . Critical Strikes 7 | . 1 . . . 2 4 . . Damage Taken 5183 | . 706 192 . 122 1636 1949 407 171 Core 752 | . 143 26 . 29 227 206 94 27 Absorbed by Shields . | . . . . . . . . . Ignored by Resistances 15 | . . . . . . . . 15 Regen/Repaired (Parts) 286 | . 269 . 17 . . . . . Core Remaining (%) 60 | 100 . . . 20 . . . . Volleys Fired 277 | 22 40 13 14 17 68 84 14 5 Largest 3 | 2 2 2 1 2 3 3 2 1 Hottest 100 | 100 100 40 36 73 87 71 46 39 Shots Fired 480 | 44 80 26 14 34 121 135 21 5 Gun 379 | 44 80 26 . 16 79 118 16 . Cannon 46 | . . . . 17 29 . . . Launcher 55 | . . . 14 1 13 17 5 5 Special . | . . . . . . . . . Kinetic 349 | . 48 26 . 33 108 118 16 . Thermal 76 | 44 32 . . . . . . . Explosive 55 | . . . 14 1 13 17 5 5 Electromagnetic . | . . . . . . . . . Robot Hit Streak 12 | 7 10 5 . 4 9 12 9 3 Robot Miss Streak 7 | 3 4 3 . 2 7 4 2 1 Penetration Max 1 | . . . . . 1 . 1 . Secondary Targets 10 | . 4 1 . . 1 3 1 . Max Gunslinging Chain 1 | . 1 1 . . 1 1 1 . Shots Hit Robots 358 | 28 48 21 38 21 72 111 16 3 Core Hits 203 | 11 20 7 11 6 62 67 14 5 Critical Kills . | . . . . . . . . . Critical Parts Destroyed 2 | . . . . 1 . 1 . . Critical Strikes 12 | 3 2 . 2 4 . 1 . . Burn 5 | 3 2 . . . . . . . Destroy 2 | . . . . 1 . 1 . . Blast 3 | . . . . 3 . . . . Sever 2 | . . . 2 . . . . . Melee Attacks 125 | . . 6 65 . 2 52 . . Impact 21 | . . . . . 2 19 . . Slashing 80 | . . . 60 . . 20 . . Piercing . | . . . . . . . . . Sneak Attacks 24 | . . 6 6 . . 12 . . Combat Hostiles . | . . . . . . . . . Follow-up Attacks . | . . . . . . . . . Damage Inflicted 11894 | 349 624 212 2489 462 2947 3433 890 488 Guns 3640 | 349 624 212 . 154 814 1262 225 . Cannons 666 | . . . . 240 426 . . . Explosions 4516 | . . . . 68 1698 1597 665 488 Melee 3063 | . . . 2489 . . 574 . . Ramming 9 | . . . . . 9 . . . Kinetic 3633 | . 300 212 . 394 1240 1262 225 . Thermal 673 | 349 324 . . . . . . . Explosive 4516 | . . . . 68 1698 1597 665 488 Electromagnetic . | . . . . . . . . . Impact . | . . . . . . . . . Slashing 3063 | . . . 2489 . . 574 . . Piercing . | . . . . . . . . . Highest Corruption 2 | . . . . . . 1 1 2 Average Corruption 1 | . . . . . . 1 1 1 Corruption Purged . | . . . . . . . . . Corruption Blocked . | . . . . . . . . . Effects 24 | . . . . . . 23 1 . Message Errors 4 | . . . . . . 4 . . Matter Fused 6 | . . . . . . 6 . . Heat Flow Errors 4 | . . . . . . 4 . . Energy Discharges 1 | . . . . . . 1 . . Data Loss (minor) 5 | . . . . . . 4 1 . Data Loss (major) 3 | . . . . . . 3 . . Alerts 1 | . . . . . . 1 . . Overload Shots . | . . . . . . . . . Overflow Damage 697 | . . . 312 45 46 250 19 25 Projectiles 23 | . . . . 17 6 . . . Explosions 152 | . . . . 28 40 40 19 25 Melee 522 | . . . 312 . . 210 . . Knockbacks 6 | . . . . 1 5 . . . Impact . | . . . . . . . . . Kinetic 6 | . . . . 1 5 . . . Secondary . | . . . . . . . . . Self-Inflicted Damage 395 | . . . . . 88 146 99 62 Shots 15 | . . . . . 3 7 3 2 Rammed 1 | . . . . . 1 . . . Targets Rammed 1 | . . . . . 1 . . . Kicked . | . . . . . . . . . Crushed . | . . . . . . . . . Highest Temperature 465 | 234 465 4 . 30 144 270 77 . Average Temperature 100 | 105 233 2 . 12 65 89 34 . Received Heat Transfer 1557 | . 285 57 . 33 387 642 153 . Effects 8 | . 5 . . . . 3 . . Shutdowns 1 | . 1 . . . . . . . Energy Bleed 3 | . 2 . . . . 1 . . Interference 3 | . 1 . . . . 2 . . Matter Decay 1 | . 1 . . . . . . . Siege Activations . | . . . . . . . . . Martial Activations . | . . . . . . . . . Shielding Activations . | . . . . . . . . . Robots Disrupted . | . . . . . . . . . Combat Hostiles . | . . . . . . . . . Robots Corrupted . | . . . . . . . . . Combat Hostiles . | . . . . . . . . . Parts Fried . | . . . . . . . . . Impact Corruptions . | . . . . . . . . . Robots Melted 1 | 1 . . . . . . . . Combat Hostiles . | . . . . . . . . . Parts Melted 15 | 7 4 . . 1 . 3 . . Heat Transferred 2368 | 1258 1110 . . . . . . . Parts Sabotaged . | . . . . . . . . . Parts Stolen . | . . . . . . . . . Parts Stripped . | . . . . . . . . . Power Chain Reactions . | . . . . . . . . . Alert | -11 -10 -10 -10 -9 -8 -8 -8 -8 ------- Run | Yrd Mat Min Exi Min Mat Gar Mat Gar Maximum Alert Level 5 | . . . . . 1 5 5 4 Low Security (%) 58 | 100 100 100 . 100 97 1 . . Level 1 1 | . . . . . 2 3 . . Level 2 6 | . . . . . . 17 . . Level 3 3 | . . . . . . 8 . . Level 4 9 | . . . . . . 22 1 100 Level 5 19 | . . . . . . 46 73 . High Security . | . . . . . . . 25 . Max Security . | . . . . . . . . . Peak Influence 3356 | 20 140 114 . 94 331 3356 1743 1207 Initial 1636 | . 3 12 . . . 82 1636 1132 Average 683 | 2 27 14 . 29 57 1595 1671 1133 Influence Increases 5969 | 55 417 240 30 389 884 3564 237 153 Destroy 0b10 Robot/C 2320 | . 280 180 . 240 520 880 120 100 Destroy 0b10 Robot/NC 210 | 55 5 . 25 5 70 30 20 . Destroy Leader 320 | . 60 30 . 40 118 20 42 10 Allied During Kill 247 | . . 30 5 65 11 133 3 . Successful Hack 68 | . 25 . . . 15 28 . . Select Force Hacks 30 | . 30 . . . . . . . Disable Machine 135 | . . . . 15 30 60 30 . Anti-Garrison Action 2200 | . . . . . . 2200 . . Destroy Structure 334 | . 2 . . 9 75 183 22 43 Lose Combat Pursuer 105 | . 15 . . 15 45 30 . . Influence Decreases 4714 | 50 389 273 30 389 757 335 1850 641 Entered New Map 2399 | . 2 21 . . . 45 1720 611 Time Decay 1522 | 50 377 250 30 349 396 . 70 . Lost Part 252 | . . 2 . . 70 130 20 30 Lost Ally 306 | . 10 . . 40 56 160 40 . Purge Threat 235 | . . . . . 235 . . . Squads Dispatched 12 | . 3 1 . . 4 . 4 . Investigation 4 | . 2 1 . . . . 1 . Extermination . | . . . . . . . . . Reinforcement 3 | . 1 . . . 2 . . . Assault . | . . . . . . . . . Garrison 5 | . . . . . 2 . 3 . Intercept . | . . . . . . . . . Searches Triggered . | . . . . . . . . . Construction Impeded 1 | . . . . . 1 . . . Haulers Reinforced . | . . . . . . . . . Active Scanning Responses . | . . . . . . . . . Cargo Convoy Interrupts . | . . . . . . . . . Stealth | -11 -10 -10 -10 -9 -8 -8 -8 -8 --------- Run | Yrd Mat Min Exi Min Mat Gar Mat Gar Distress Signals 5 | . 1 . . . 4 . . . Communications Jammed . | . . . . . . . . . Distress Signals . | . . . . . . . . . Times Spotted 155 | . 26 10 . 13 52 39 9 6 Peak Tracking Total 8 | . 5 3 . 3 8 4 4 6 Tactical Retreats 5 | . 1 . . 1 2 1 . . Traps | -11 -10 -10 -10 -9 -8 -8 -8 -8 ------- Run | Yrd Mat Min Exi Min Mat Gar Mat Gar Traps Triggered 10 | . 1 . . . . 9 . . Indirectly . | . . . . . . . . . Trap Hack Attempts 145 | . . 20 . . . 125 . . Triggered . | . . . . . . . . . Disarmed 1 | . . 1 . . . . . . Reprogrammed 12 | . . 3 . . . 9 . . Reused . | . . . . . . . . . Traps Extracted 9 | . . 8 . . . 1 . . Installed . | . . . . . . . . . Triggered . | . . . . . . . . . Most Traps Carried 14 | . . 6 5 5 5 14 14 14 Machines | -11 -10 -10 -10 -9 -8 -8 -8 -8 ---------- Run | Yrd Mat Min Exi Min Mat Gar Mat Gar Machines Disabled 18 | . . . 1 1 2 12 2 . Max in Single Turn 2 | . . . 1 1 1 2 1 . Garrison Relay 7 | . . . . . . 7 . . Machines Repaired . | . . . . . . . . . Machines Dismantled . | . . . . . . . . . Machines Sabotaged . | . . . . . . . . . Overloaded Fab Kills . | . . . . . . . . . Hacking | -11 -10 -10 -10 -9 -8 -8 -8 -8 --------- Run | Yrd Mat Min Exi Min Mat Gar Mat Gar Machines Accessed 32 | . 8 2 4 . 11 5 2 . Terminals 21 | . 6 . . . 9 5 1 . Fabricators . | . . . . . . . . . Repair Stations 1 | . 1 . . . . . . . Recycling Units 1 | . 1 . . . . . . . Scanalyzers 1 | . . . . . 1 . . . Garrison Access 2 | . . . . . 1 . 1 . Total Hacks 131 | . 30 2 49 . 38 9 3 . Successful 101 | . 21 2 49 . 25 3 1 . Failed 30 | . 9 . . . 13 6 2 . Catastrophic 2 | . 1 . . . . 1 . . Database Lockouts . | . . . . . . . . . Manual 55 | . 18 . . . 35 . 2 . Terminals 69 | . 23 . . . 35 9 2 . Fabricators . | . . . . . . . . . Repair Stations 6 | . 6 . . . . . . . Recycling Units 1 | . 1 . . . . . . . Scanalyzers 2 | . . . . . 2 . . . Garrison Access 2 | . . . . . 1 . 1 . Terminal Hacks 68 | . 6 2 49 . 8 3 . . Record 50 | . 1 . 49 . . . . . Robot Analysis 1 | . 1 . . . . . . . Prototype ID Bank 1 | . 1 . . . . . . . Open Door 3 | . . 2 . . . 1 . . Branch Access Points 1 | . 1 . . . . . . . Terminal Index 1 | . . . . . 1 . . . Unreport Threat 4 | . . . . . 4 . . . Locate Traps 1 | . . . . . 1 . . . Dispatch Records 2 | . 1 . . . 1 . . . Maintenance Status 1 | . 1 . . . . . . . Security Status 1 | . . . . . 1 . . . Garrison Registry 1 | . . . . . . 1 . . Patrol Navigation 1 | . . . . . . 1 . . Fabricator Hacks . | . . . . . . . . . Repair Station Hacks 6 | . 6 . . . . . . . Scan Component 3 | . 3 . . . . . . . Repair 3 | . 3 . . . . . . . Recycling Unit Hacks . | . . . . . . . . . Scanalyzer 2 | . . . . . 2 . . . Retrieve Study 2 | . . . . . 2 . . . Garrison Access Hacks 2 | . . . . . 1 . 1 . Unlock Access 2 | . . . . . 1 . 1 . Unauthorized Hacks 23 | . 9 . . . 14 . . . Terminals 22 | . 8 . . . 14 . . . Assimilate 4 | . 1 . . . 3 . . . Botnet 3 | . 1 . . . 2 . . . Operators 2 | . 1 . . . 1 . . . Skim 13 | . 5 . . . 8 . . . Fabricators . | . . . . . . . . . Repair Stations . | . . . . . . . . . Recycling Units 1 | . 1 . . . . . . . Tunnel 1 | . 1 . . . . . . . Scanalyzers . | . . . . . . . . . Garrison Access . | . . . . . . . . . Data Cores Recovered . | . . . . . . . . . Used . | . . . . . . . . . Hacking Detections 21 | . 6 . . . 11 3 1 . Full Trace Events 2 | . . . . . . 2 . . Feedback Events 1 | . . . . . . 1 . . Corruption 1 | . . . . . . 1 . . Feedback Blocked . | . . . . . . . . . Robot Schematics Acquired . | . . . . . . . . . Robots Built . | . . . . . . . . . Authchips . | . . . . . . . . . Time . | . . . . . . . . . Total Robot Build Rating . | . . . . . . . . . Part Schematics Acquired . | . . . . . . . . . Parts Built . | . . . . . . . . . Authchips . | . . . . . . . . . Time . | . . . . . . . . . Total Part Build Rating . | . . . . . . . . . Part Studies Acquired 1 | . . . . . 1 . . . Parts Repaired 3 | . 3 . . . . . . . Time 90 | . 90 . . . . . . . Parts Recycled . | . . . . . . . . . Recycled Matter . | . . . . . . . . . Retrieved Matter . | . . . . . . . . . Retrieved Components . | . . . . . . . . . Parts Scanalyzed . | . . . . . . . . . Part Schematics Acquired . | . . . . . . . . . Parts Damaged . | . . . . . . . . . Bothacking | -11 -10 -10 -10 -9 -8 -8 -8 -8 ------------ Run | Yrd Mat Min Exi Min Mat Gar Mat Gar Used RIF Installer . | . . . . . . . . . Robots Hacked 1 | . . 1 . . . . . . Non-combat 1 | . . 1 . . . . . . Combat . | . . . . . . . . . Robot Hacks Applied 2 | . . 2 . . . . . . parse_system 1 | . . 1 . . . . . . no_distress 1 | . . 1 . . . . . . Relay Couplers Released 29 | . . . . . . 29 . . Machine Destruction 25 | . . . . . . 25 . . Programmers 4 | . . . . . . 4 . . Fabnet Peak Effective % . | . . . . . . . . . Robots Rewired 16 | . . . 3 . . 13 . . Allies Hacked 1 | . . . . . . 1 . . Hacks Repelled . | . . . . . . . . . Allies | -11 -10 -10 -10 -9 -8 -8 -8 -8 -------- Run | Yrd Mat Min Exi Min Mat Gar Mat Gar Total Allies 21 | . 1 3 3 . 1 13 . . Largest Group 7 | . . 3 6 6 3 7 2 . Highest-Rated Group 161 | . . 40 63 63 30 161 31 . Highest-Rated Ally 31 | . . 16 16 16 16 31 21 . Initial Warlord ECA Mod 11 | . . . . . . . 11 11 Total Orders 17 | . . 4 2 . 2 9 . . STAY 9 | . . 2 1 . 1 5 . . FOLLOW 8 | . . 2 1 . 1 4 . . Ally Attacks 150 | . . 22 . 65 4 57 2 . Total Damage 1694 | . . 188 . 542 23 887 54 . Kills 19 | . . 3 . 7 . 9 . . Allies Corrupted . | . . . . . . . . . Allies Melted . | . . . . . . . . . Intel | -11 -10 -10 -10 -9 -8 -8 -8 -8 ------- Run | Yrd Mat Min Exi Min Mat Gar Mat Gar Active Infowar (turns) 5723 | 104 1612 1436 1032 1350 72 . . 117 Optics 117 | . . . . . . . . 117 Seismic 5606 | 104 1612 1436 1032 1350 72 . . . Robot Analysis Total 1 | . 1 . . . . . . . Derelict Logs Recovered 2 | . . 1 . 1 . . . . Drone Launches . | . . . . . . . . . Drone Recoveries . | . . . . . . . . . Exploration | -11 -10 -10 -10 -9 -8 -8 -8 -8 ------------- Run | Yrd Mat Min Exi Min Mat Gar Mat Gar Turns Passed 14617 | 234 1612 1808 3217 1350 1613 4475 191 117 Spaces Moved 6028 | 94 561 727 1726 719 575 1522 60 44 Core 4 | 4 . . . . . . . . Treads 1472 | 11 163 . 182 . 41 971 60 44 Legs 551 | . . . . . . 551 . . Wheels 4001 | 79 398 727 1544 719 534 . . . Hover . | . . . . . . . . . Flight . | . . . . . . . . . Fastest Speed 50 | 50 95 175 100 175 190 240 240 240 Average Speed 204 | 97 229 189 170 175 223 252 242 240 Slowest Speed 680 | 160 320 215 175 175 240 680 320 240 Overloaded Moves . | . . . . . . . . . Propulsion Burnouts . | . . . . . . . . . Robots Hopped . | . . . . . . . . . Potential Cave-ins . | . . . . . . . . . Cave-ins Triggered . | . . . . . . . . . Exploration Rate (%) 60 | 7 82 99 96 96 47 90 12 11 Regions Visited 8 Branch Regions 3 Pre-discovered Areas 6 | . 1 . 1 1 3 . . . Known Exits Taken 3 | . 1 . . . 1 . 1 . Unknown Exits Taken 4 | 1 . 1 1 1 . . . . Scrap Searched 2 | . . 1 . 1 . . . . Spaces Dug 124 | . . . 102 . 2 20 . . Terrain Destroyed 558 | . . . 189 10 116 133 25 85 Melee 9 | . . . 3 . 2 4 . . Projectile 10 | . . . . 2 8 . . . AOE 539 | . . . 186 8 106 129 25 85 Terrain Rammed . | . . . . . . . . . Walls Destroyed . | . . . . . . . . . Machines Disabled . | . . . . . . . . . Actions | -11 -10 -10 -10 -9 -8 -8 -8 -8 --------- Run | Yrd Mat Min Exi Min Mat Gar Mat Gar Total 7721 | 188 804 1138 1916 779 789 1973 83 51 Wait 751 | 59 172 339 23 36 94 28 . . Move 6022 | 93 560 726 1725 718 575 1521 60 44 Hop . | . . . . . . . . . Pick Up 101 | 5 10 15 31 3 6 28 3 . Fast Attach 25 | 8 4 1 4 . 2 6 . . Attach 32 | . . 1 2 . 12 15 1 1 Detach 15 | 1 2 1 6 . 3 2 . . Swap 77 | . 11 6 9 2 18 26 4 1 Drop 79 | . 5 10 31 3 9 20 1 . Fire 277 | 22 40 13 14 17 68 84 14 5 Melee 125 | . . 6 65 . 2 52 . . Ram . | . . . . . . . . . Kick . | . . . . . . . . . Crush . | . . . . . . . . . Escape Stasis 19 | . . . . . . 19 . . Rewire 53 | . . . 6 . . 47 . . Trap 145 | . . 20 . . . 125 . . Miscellaneous . | . . . . . . . . . Route ------- -11/Scrapyard -10/Materials (discovered 5 exits: *Mat x3 / *Min / *Sub) -10/Mines (discovered 4 exits: *Mat x2 / *Exi / Sub) -10/Exiles (discovered 2 exits: [*Min x2]) -9/Mines (discovered 2 exits: *Mat x2) -8/Materials (discovered 2 exits: Fac / Gar) -8/Garrison (discovered 3 exits: *Mat x3) -8/Materials -8/Garrison History --------- Turn | Location | Event 7 | -11/Scrapyard | Discovered new exit (range 15) 235 | -11/Scrapyard | Entered Materials 293 | -10/Materials | Discovered new exit (range 16) 317 | -10/Materials | Build established: Mutant 514 | -10/Materials | Discovered new exit (range 12) 1024 | -10/Materials | Core integrity fell below 50% 1241 | -10/Materials | Discovered new exit (range 3) 1501 | -10/Materials | Identified exit to Mines 1549 | -10/Materials | Repaired Lgt. Treads 1568 | -10/Materials | Learned location of 2 exits from Subcaves 1576 | -10/Materials | Repaired Lgt. Treads 1615 | -10/Materials | Repaired Lgt. Nuclear Core 1627 | -10/Materials | Learned 4 Subcaves zone layouts 1633 | -10/Materials | Discovered new exit (range 5) 1678 | -10/Materials | Learned location of 2 exits from Mines 1720 | -10/Materials | Learned location of 1 exit from Recycling 1731 | -10/Materials | Discovered new exit (range 8) 1778 | -10/Materials | Identified exit to Materials 1819 | -10/Materials | Learned 4 Subcaves zone layouts 1847 | -10/Materials | Entered Mines 1848 | -10/Mines | Identified exit to Subcaves 1852 | -10/Mines | Met a Derelict shopkeep closing up shop 1899 | -10/Mines | Discovered exit to Materials (range 6) 1943 | -10/Mines | Deemed a non-threat by the Exiles lab entrance 1945 | -10/Mines | Discovered new exit (range 5) 2015 | -10/Mines | Assisted by bots powering up and referring to "LRC-V3" 2237 | -10/Mines | Found a damaged Exp. Sensor Array with a note attached 2241 | -10/Mines | Found Prototype Device 2280 | -10/Mines | A weapon hastily lodged in a ceiling crevice suddenly fell to the ground 2635 | -10/Mines | Met a Derelict who couldn't figure out how to use a Trap Extractor 3042 | -10/Mines | Found DCF Scrap (13 items) 3267 | -10/Mines | Learned 8 Materials zone layouts 3287 | -10/Mines | Found a Scrap Suit stashed away for nefarious purposes 3374 | -10/Mines | Found Scrap Suit 3655 | -10/Mines | Entered Exiles 3655 | -10/Exiles | Found Exiles lab destroyed 3655 | -10/Exiles | Accompanied by 3 allies 3738 | -10/Exiles | Discovered new exit (range 15) 4009 | -10/Exiles | Build established: Commander-Mutant 5431 | -10/Exiles | Learned location of Zion (-6) 5842 | -10/Exiles | Discovered new exit (range 14) 6232 | -10/Exiles | Build established: Commander-Scrapper 6621 | -10/Exiles | Build established: Commander-Mutant 6872 | -10/Exiles | Entered Mines 6872 | -9/Mines | Accompanied by 6 allies 7190 | -9/Mines | Received a Rocket Launcher from a helpful Derelict 7229 | -9/Mines | Discovered new exit (range 7) 7338 | -9/Mines | Learned Materials security intel 7403 | -9/Mines | Discovered new exit (range 11) 7428 | -9/Mines | Learned location of Storage (-9) 7497 | -9/Mines | Joined a pair of Derelicts in attacking an 0b10 outpost 7729 | -9/Mines | Found a hidden stash of uninstalled traps 7779 | -9/Mines | Build established: Mutant 8222 | -9/Mines | Entered Materials 8222 | -8/Materials | Accompanied by 3 allies 8222 | -8/Materials | Evolved 4 slots: Propulsion x1, Utility x2, Weapon x1 8223 | -8/Materials | Identified exit to Factory 8395 | -8/Materials | Lost 3 allies 8410 | -8/Materials | Destroyed 14 combat bots 9129 | -8/Materials | Build established: Scavenger-Mutant 9138 | -8/Materials | Learned location of 1 exit from Extension 9158 | -8/Materials | Learned location of 1 exit from Recycling 9169 | -8/Materials | Learned Factory security intel 9188 | -8/Materials | Learned location of 1 exit from Recycling 9216 | -8/Materials | Learned Storage trap positions 9252 | -8/Materials | Learned 4 Factory zone layouts 9731 | -8/Materials | Lost 6 parts (3n2u1w) 9735 | -8/Materials | Garrison activated, responded to threat 9831 | -8/Materials | Identified exit to Garrison 9835 | -8/Materials | Entered Garrison 9937 | -8/Garrison | Triggered checkpoint 10084 | -8/Garrison | Garrison Relay disabled 10552 | -8/Garrison | Build established: Commander-Mutant 10761 | -8/Garrison | Triggered checkpoint 10825 | -8/Garrison | Triggered checkpoint 10858 | -8/Garrison | Garrison Relay disabled 10905 | -8/Garrison | Triggered checkpoint 10945 | -8/Garrison | Lost 4 allies 10991 | -8/Garrison | Triggered checkpoint 11069 | -8/Garrison | Triggered checkpoint 11091 | -8/Garrison | Discovered new exit (range 14) 11143 | -8/Garrison | Garrison Relay disabled 11200 | -8/Garrison | Build established: Scavenger-Mutant 11371 | -8/Garrison | Triggered checkpoint 11489 | -8/Garrison | Triggered checkpoint 11490 | -8/Garrison | Core integrity fell below 50% 11492 | -8/Garrison | Garrison Relay disabled 11564 | -8/Garrison | Lost 10 parts (1p4n3u2w) 12069 | -8/Garrison | Triggered checkpoint 12120 | -8/Garrison | Discovered new exit (range 13) 12120 | -8/Garrison | Discovered new exit (range 45) 12120 | -8/Garrison | Discovered new exit (range 73) 12172 | -8/Garrison | Garrison Relay disabled 12960 | -8/Garrison | Build established: Trapper-Mutant 12976 | -8/Garrison | Lost 3 allies 13409 | -8/Garrison | Garrison Relay disabled 13846 | -8/Garrison | Triggered checkpoint 13888 | -8/Garrison | Garrison Relay disabled 14306 | -8/Garrison | Identified exit to Materials 14310 | -8/Garrison | Entered Materials 14310 | -8/Materials | Accompanied by 2 allies 14396 | -8/Materials | Core integrity fell below 20% 14452 | -8/Materials | High security lockdown imminent 14501 | -8/Materials | Identified exit to Garrison 14501 | -8/Materials | Entered Garrison 14618 | -8/Garrison | Destroyed self with Heavy Rocket Launcher Last Messages --------------- 14481_ Acquired Lgt. Treads. 14489_ Acquired 52 matter. 14498_ Acquired 33 matter. 14500_ The unstable cave ceiling collapses. 14501_ Connecting with Garrison Access... >>Unlock Access door unlocked. 14501_ EXIT=UNLOCKED: GARRISON LOCATION=GARRISON GOAL=ESCAPE 14609_ Ion Engine destroyed. 14612_ P-60 Hacker destroyed. 14612_ Insulated Plating destroyed. 14614_ Destroyed Gravmag System. 14616_ P-60 Hacker destroyed. 14617_ Med. Armor Plating destroyed. 14618_ The unstable cave ceiling collapses. 14618_ Destroyed Lgt. Ion Engine. 14618_ Destroyed Flight Unit. 14618_ S-10 Pest destroyed. Map ----- +----------------------------------------------------+ | ?????????????????????????????????????????????????? | | ?????????????????????????????????????????????????? | | ?????????????????????????????????????????????????? | | ?????????????????????????????????????????????????? | | ?????????????????????????????????????????????????? | | ?????????????????????????????????????????????????? | | ?????????????????????????#???????????#???????????? | | ????????????????????????? ??????????? ???????????? | | ????????????????????????? ??????????? ???????????? | | ????????????????????????? ??????????? ???????????? | | ????????????????????????? ??????????# #?????###### | | ????????????????????????? ??????????" #?????# # | | ????????????????????????? ??????????" #?????# # | | ????????????????????????? ??????????" #?????# # | | ????????????????????##### #####?????# #?????# ### | | ????????????????????# #?????# #?????# #?? | | ????????????????????# | #?????# #?????# #?? | | ????????????????????# = #?????# #?????# #?? | | ????????????????????## ! #?????# #?????# #?? | | ????????????????????# %% #?????# #?????# #?? | | ????????????????????? #?#???# #?????# #?? | | ????????????????????## # #???# #?????# #?? | | ????????????????????# ##??# #?????# #?? | | ?????????????????????# #### ####### #?? | | ??????????????????????# [s #?? | | ??????????????????????# @ [%* #?? | | ??????????????????????## =#### ##########?? | | ???????????????????????## ## #??#^ #??????????? | | ????????????????????????# ; ????# ^#??????????? | | ????????????????????????# #####???# #??????????? | | ????????????????????????# #???????# #??????????? | | ????????????????????????# #???????# #??????????? | | ????????????????????????# #???????# #??????????? | | ???????????????????????? ???????# #??????????? | | ???????????????????????? ??????? #??????????? | | ???????????????????????? ??????? #??????????? | | ????????????????????????# ???????####??????????? | | ????????????????????????# #????????????????????? | | ???????????????????????? "????????????????????? | | ???????????????????????? "????????????????????? | | ???????????????????????? "????????????????????? | | ???????????????????????? "????????????????????? | | ????????????????????????# #????????????????????? | | ????????????????????????? #????????????????????? | | ????????????????????????? ????????????????????? | | ????????????????????????? ????????????????????? | | ????????????????????????? ?????????????????????? | | ?????????????????????????????????????????????????? | | ?????????????????????????????????????????????????? | | ?????????????????????????????????????????????????? | +----------------------------------------------------+ Best States ------------- Heat Dissipation 31 Energy Generation 14 Energy Capacity 280 Matter Stores 300 Matter Capacity 300 Sight Range 22 Terrain Scan Density 10 Armor Coverage 525 Resistance: EM 15 Evasion (%) 44 Recoil Reduction 3 Salvage Targeting 4 Offensive Hacking 20 Trap Extractor Capacity 6 Item Schematics ----------------- None Robot Schematics ------------------ None Fabricated ------------ Nothing Repaired ---------- Lgt. Treads | 9% | -10/Materials Lgt. Treads | 14% | -10/Materials Lgt. Nuclear Core | 56% | -10/Materials Studied --------- Imp. Grenade Launcher | -8/Materials | Hacked Alien Tech Used ----------------- None Achievements -------------- Hehehe Junior Dev Not Today, Chutes Challenges ------------ None Game ------ Seed LaunchAlertChainsword Manual? 0 Play Time 01:31:41 Cumulative 159.0 hours Start 2025.12.01 @ 20:39:40 End 2025.12.01 @ 22:11:02 Sessions 1 Manual Loads 0 Difficulty Rogue Special Mode None Game No. 107 Rogue 107 Adventurer 0 Explorer 0 Win Type - Total 3 Types 3/0/0/0/0/0/0/0/0/0 Lore% 51 Gallery% 51 Achievement% 41 Wizard Run 0 Options --------- Layout 1 ASCII 0 Keyboard 1 Movement Vi Keybinds 1 Fullscreen 1 Font 32/SmallcapsGlow Map View 50x35 Zoom Use 0% Tactical HUD 1 Map Filters NONE Filters NONE Steam 1 RUN: 9d1975c6-83b3-4090-b233-30a16b0c53d9